bitfinex-derivatives/quotes_BTCF0:USTF0_20210706
["timestamp","ask_amount","ask_price","bid_price","bid_amount"]
[1625576096849,4.8091,34324.0,34322.0,0.76984574]
[1625576096946,0.01559746,34323.0,34321.0,0.97459642]
[1625576097350,0.01559746,34323.0,34321.0,0.90259642]
[1625576097446,0.01559746,34323.0,34318.0,1.29920686]
[1625576097447,0.01559746,34323.0,34318.0,1.13751949]
[1625576097652,0.01559746,34323.0,34317.0,1.30002227]
[1625576097653,0.01559746,34323.0,34319.0,1.13698046]
[1625576097846,0.48115088,34320.0,34319.0,1.13698046]
[1625576098148,0.56755088,34320.0,34319.0,1.13698046]
[1625576098248,0.77907088,34320.0,34319.0,1.13698046]
[1625576098549,0.77907088,34320.0,34315.0,0.24057544]
[1625576098550,0.77907088,34320.0,34318.0,1.1370493]
[1625576099354,0.69267088,34320.0,34318.0,1.1370493]
[1625576099450,0.48115088,34320.0,34318.0,1.1370493]
[1625576099704,0.48115088,34320.0,34319.0,1.13655703]
[1625576100657,0.48115088,34320.0,34319.0,2.43484252]
[1625576101106,0.48115088,34320.0,34319.0,3.8948602]
[1625576101861,0.48115088,34320.0,34319.0,4.13543564]
[1625576102158,0.48115088,34320.0,34319.0,2.67541796]
[1625576102307,0.48115088,34320.0,34319.0,4.1354817]
[1625576103710,0.48115088,34320.0,34319.0,2.67541796]
[1625576105563,0.49674769,34320.0,34319.0,2.6789157]
[1625576105814,0.58514769,34320.0,34319.0,2.6789157]
[1625576106065,0.49674769,34320.0,34319.0,2.6789157]
[1625576106369,0.83180769,34320.0,34319.0,1.37713247]
[1625576106616,0.83180769,34320.0,34319.0,0.24057544]
[1625576107168,0.92040769,34320.0,34319.0,0.24057544]
[1625576107317,0.92040769,34320.0,34319.0,1.3813878]
[1625576107616,0.92040769,34320.0,34319.0,0.24057544]
[1625576108368,0.92040769,34320.0,34319.0,1.38128143]
[1625576108468,0.83180769,34320.0,34319.0,1.38128143]
[1625576108570,0.83180769,34320.0,34319.0,2.68453495]
[1625576110372,0.91920769,34320.0,34319.0,2.68453495]
[1625576110674,0.83180769,34320.0,34319.0,2.68453495]
[1625576110873,0.49674769,34320.0,34319.0,2.68453495]
[1625576114132,0.58414769,34320.0,34319.0,2.68453495]
[1625576114787,0.88206769,34320.0,34319.0,2.68453495]
[1625576114884,0.88206769,34320.0,34319.0,1.14070599]
[1625576115084,0.88206769,34320.0,34318.0,1.14260609]
[1625576115332,0.88206769,34320.0,34319.0,1.14223236]
[1625576115533,0.86647088,34320.0,34319.0,1.14223236]
[1625576115738,0.88208104,34320.0,34319.0,1.14223236]
[1625576115834,0.88208104,34320.0,34318.0,1.14261467]
[1625576116286,0.01561439,34319.0,34318.0,1.14261467]
[1625576117237,0.01561439,34319.0,34318.0,2.44688619]
[1625576119789,0.01561439,34319.0,34318.0,2.45038044]
[1625576120293,0.01561439,34319.0,34318.0,2.44688619]
[1625576120795,0.24057544,34325.0,34318.0,3.91289686]
[1625576120894,0.0862,34328.0,34318.0,3.91639098]
[1625576120996,0.2929,34330.0,34318.0,4.20658098]
[1625576121094,0.2929,34330.0,34326.0,1.13917761]
[1625576121192,0.2929,34330.0,34326.0,1.42483761]
[1625576121292,0.2929,34330.0,34329.0,1.13806286]
[1625576121599,0.2929,34330.0,34329.0,2.43802595]
[1625576121695,0.01556156,34330.0,34329.0,2.43802595]
[1625576121796,0.01556156,34330.0,34329.0,7.22412595]
[1625576121894,0.01556156,34330.0,34329.0,7.94585227]
[1625576122195,0.01556008,34339.0,34329.0,7.94936042]
[1625576122295,0.01556008,34339.0,34329.0,9.40925816]
[1625576122494,0.2929,34341.0,34335.0,1.13524862]
[1625576122696,0.01555952,34340.0,34337.0,1.13441859]
[1625576123697,0.01555952,34340.0,34338.0,1.13405016]
[1625576123896,0.01555952,34340.0,34339.0,1.85605756]
[1625576124097,0.01555952,34340.0,34339.0,0.72172632]
[1625576125152,0.01555912,34343.0,34339.0,0.72172632]
[1625576125549,0.01555912,34343.0,34339.0,0.66322632]
[1625576125650,1.19953783,34341.0,34339.0,0.66322632]
[1625576125780,1.41771783,34341.0,34339.0,0.66322632]
[1625576125952,1.19958453,34340.0,34339.0,0.66322632]
[1625576126148,1.21514588,34340.0,34339.0,0.66322632]
[1625576126398,2.58614296,34340.0,34339.0,0.66322632]
[1625576127367,3.614399,34340.0,34339.0,0.66322632]
[1625576127903,3.85497444,34340.0,34339.0,0.66322632]
[1625576128104,2.48397736,34340.0,34339.0,0.66322632]
[1625576128303,3.85499449,34340.0,34339.0,0.66322632]
[1625576128503,2.48397736,34340.0,34339.0,0.66322632]
[1625576129956,2.7245528,34340.0,34339.0,0.66322632]
[1625576130458,2.70899145,34340.0,34339.0,0.66322632]
[1625576130558,2.72455536,34340.0,34339.0,0.66322632]
[1625576131260,2.72455536,34340.0,34339.0,0.42265088]
[1625576131360,4.09563268,34340.0,34339.0,0.42265088]
[1625576132561,4.09563268,34340.0,34339.0,0.01097544]
[1625576132913,4.60997072,34340.0,34339.0,0.01097544]
[1625576134015,4.60997072,34340.0,34335.0,0.24057544]
[1625576134116,1.54344024,34336.0,34335.0,0.24057544]
[1625576134419,0.51453723,34336.0,34335.0,0.73064934]
[1625576134618,0.60223723,34336.0,34335.0,0.73064934]
[1625576134716,0.51453723,34336.0,34335.0,0.73064934]
[1625576134919,0.51453723,34336.0,34335.0,0.24057544]
[1625576135426,1.54376744,34336.0,34335.0,0.73085633]
[1625576135725,1.63146744,34336.0,34335.0,0.73085633]
[1625576136022,1.87204288,34336.0,34335.0,0.73085633]
[1625576136471,0.84281267,34336.0,34335.0,0.73085633]
[1625576137072,0.75511267,34336.0,34335.0,0.73085633]
[1625576137272,0.75511267,34336.0,34335.0,1.71113281]
[1625576138074,0.84281267,34336.0,34335.0,1.71113281]
[1625576138276,0.75511267,34336.0,34335.0,1.71113281]
[1625576138478,0.75511267,34336.0,34335.0,0.73085633]
[1625576138479,1.78432536,34336.0,34335.0,0.73085633]
[1625576138779,1.54373328,34343.0,34335.0,0.24057544]
[1625576138923,0.17968516,34343.0,34335.0,0.74057544]
[1625576139013,0.20580824,34353.0,34338.0,1.30228371]
[1625576139015,1.37199342,34350.0,34338.0,1.30228371]
[1625576139090,1.37199342,34350.0,34339.0,0.5]
[1625576139300,0.9588,34366.0,34343.0,1.61932758]
[1625576139301,1.2517,34366.0,34343.0,1.61932758]
[1625576139400,1.2517,34366.0,34344.0,0.5]
[1625576139486,1.2517,34366.0,34348.0,1.61626865]
[1625576139579,1.2517,34366.0,34349.0,0.5]
[1625576139681,0.00676474,34365.0,34353.0,1.61356629]
[1625576139781,0.00676474,34365.0,34354.0,0.5]
[1625576139981,0.9588,34366.0,34364.0,0.96230176]
[1625576140180,0.9588,34366.0,34364.0,1.19876176]
[1625576140683,0.9588,34366.0,34364.0,1.69876176]
[1625576140885,0.2929,34387.0,34367.0,3.7486]
[1625576140984,0.2929,34387.0,34368.0,0.5]
[1625576141084,0.2929,34387.0,34367.0,3.7486]
[1625576141984,0.2929,34387.0,34386.0,0.85908562]
[1625576142085,0.2929,34387.0,34386.0,1.17691562]
[1625576143188,0.2929,34387.0,34386.0,1.14041562]
[1625576143290,0.2929,34387.0,34386.0,0.32223474]
[1625576143389,0.2929,34387.0,34368.0,0.057]
[1625576143390,0.3499,34387.0,34355.0,1.59520794]
[1625576143490,0.60171,34387.0,34355.0,1.01920794]
[1625576143616,0.5,34386.0,34355.0,1.01920794]
[1625576143691,0.174,34385.0,34340.0,1.92051908]
[1625576143791,1.0,34384.0,34340.0,1.92051908]
[1625576143891,5.0227,34351.0,34329.0,1.96832065]
[1625576144013,0.057,34350.0,34348.0,0.24057544]
[1625576144110,0.057,34350.0,34348.0,0.07177544]
[1625576144207,0.30433,34351.0,34348.0,0.07177544]
[1625576144503,5.0222,34349.0,34348.0,0.06257544]
[1625576144605,5.0222,34349.0,34330.0,1.92628657]
[1625576145097,0.30433,34351.0,34329.0,0.0406]
[1625576145318,0.2929,34359.0,34329.0,0.0406]
[1625576145394,0.9795,34358.0,34329.0,0.31601]
[1625576145496,0.9795,34358.0,34330.0,0.5]
[1625576145596,0.9795,34358.0,34334.0,4.2655]
[1625576145692,0.9795,34358.0,34335.0,0.5878]
[1625576145943,0.9795,34358.0,34335.0,0.0878]
[1625576146042,0.9795,34358.0,34357.0,0.24057544]
[1625576146341,1.0365,34358.0,34357.0,0.24057544]
[1625576146743,0.9795,34358.0,34357.0,0.47380544]
[1625576148349,1.0365,34358.0,34357.0,0.47380544]
[1625576148449,1.0365,34358.0,34357.0,0.38620544]
[1625576148548,1.0365,34358.0,34357.0,0.15297544]
[1625576148649,1.0365,34358.0,34357.0,0.07957544]
[1625576148749,1.0365,34358.0,34357.0,0.02227544]
[1625576148850,1.0365,34358.0,34354.0,0.21885088]
[1625576148949,1.0365,34358.0,34354.0,0.14795088]
[1625576150053,0.24057544,34355.0,34354.0,0.14795088]
[1625576150555,0.29757544,34355.0,34354.0,0.14795088]
[1625576156120,0.29757544,34355.0,34354.0,0.37386088]
[1625576158074,0.29757544,34355.0,34354.0,0.41446088]
[1625576159830,0.29757544,34355.0,34354.0,0.41076088]
[1625576160483,0.29757544,34355.0,34354.0,0.32296088]
[1625576163039,0.29757544,34355.0,34354.0,0.09705088]
[1625576164394,0.24057544,34355.0,34354.0,0.09705088]
[1625576165544,0.55239544,34355.0,34354.0,0.09705088]
[1625576165644,0.60939544,34355.0,34354.0,0.09705088]
[1625576165944,0.55239544,34355.0,34354.0,0.09705088]
[1625576166695,0.60939544,34355.0,34354.0,0.09705088]
[1625576172010,0.24057544,34355.0,34354.0,0.39846088]
[1625576173109,0.25601799,34355.0,34354.0,0.39846088]
[1625576174159,0.52669799,34355.0,34354.0,0.09705088]
[1625576174266,4.77579799,34355.0,34354.0,0.09705088]
[1625576174360,4.83279799,34355.0,34354.0,0.09705088]
[1625576174559,4.83279799,34355.0,34351.0,0.24057544]
[1625576174959,0.01544433,34354.0,34351.0,0.24057544]
[1625576175059,0.01544433,34354.0,34351.0,0.16877544]
[1625576175812,0.01544433,34354.0,34351.0,0.12667544]
[1625576176213,0.057,34351.0,34347.0,0.24057544]
[1625576176313,0.0862,34350.0,34347.0,0.24057544]
[1625576176763,0.01544578,34349.0,34347.0,0.24057544]
[1625576177064,0.01544578,34349.0,34347.0,0.05057544]
[1625576177263,0.01544578,34349.0,34344.0,0.17737544]
[1625576177363,0.01544578,34349.0,34344.0,0.00047544]
[1625576177563,0.01544578,34349.0,34343.0,0.07377958]
[1625576177714,0.01544578,34349.0,34341.0,0.56358319]
[1625576177813,0.01544578,34349.0,34341.0,0.32300775]
[1625576177965,0.01544578,34349.0,34338.0,0.64675183]
[1625576178169,0.01544578,34349.0,34336.0,0.64708645]
[1625576178265,0.057,34338.0,34336.0,0.64708645]
[1625576178566,0.01544858,34337.0,34335.0,0.64733908]
[1625576178818,0.01544858,34337.0,34334.0,0.64701036]
[1625576178917,0.057,34338.0,34334.0,0.64701036]
[1625576179219,0.057,34338.0,34334.0,0.53641036]
[1625576179320,0.057,34338.0,34332.0,0.97030069]
[1625576179521,0.057,34338.0,34331.0,0.97067414]
[1625576179670,0.01544886,34337.0,34331.0,0.97067414]
[1625576179772,0.0869,34336.0,34330.0,0.97071277]
[1625576180272,0.72172632,34331.0,34329.0,0.97171831]
[1625576180372,0.057,34330.0,34329.0,0.97171831]
[1625576180473,0.057,34330.0,34326.0,1.29562441]
[1625576180474,0.057,34330.0,34326.0,0.97274399]
[1625576180673,4.8494,34327.0,34326.0,0.92884399]
[1625576180773,4.9064,34327.0,34325.0,0.97285316]
[1625576180971,4.9064,34327.0,34324.0,1.13486799]
[1625576181822,4.9363,34327.0,34324.0,1.13486799]
[1625576181924,4.9064,34327.0,34324.0,1.13486799]
[1625576182023,4.8494,34327.0,34324.0,1.13486799]
[1625576182224,0.48115088,34325.0,34324.0,1.13486799]
[1625576182577,0.48115088,34325.0,34323.0,1.13481613]
[1625576182883,0.48115088,34325.0,34322.0,1.13496229]
[1625576182977,0.057,34324.0,34322.0,1.13496229]
[1625576183180,0.48115088,34325.0,34323.0,1.13479169]
[1625576184030,0.48115088,34325.0,34323.0,1.42220169]
[1625576184229,0.48115088,34325.0,34324.0,1.13668672]
[1625576184879,0.48115088,34325.0,34324.0,2.43523458]
[1625576186282,0.48115088,34325.0,34324.0,2.67581002]
[1625576186632,0.48115088,34325.0,34324.0,4.13562809]
[1625576186932,0.48115088,34325.0,34324.0,2.67581002]
[1625576188589,0.48115088,34325.0,34324.0,4.13532761]
[1625576189792,0.48115088,34325.0,34324.0,2.67581002]
[1625576189991,0.48115088,34325.0,34324.0,4.13478663]
[1625576190294,0.48115088,34325.0,34324.0,2.67581002]
[1625576194156,0.48115088,34325.0,34324.0,2.95861002]
[1625576196113,0.53815088,34325.0,34324.0,2.95861002]
[1625576196215,0.48115088,34325.0,34324.0,2.95861002]
[1625576196415,0.53815088,34325.0,34324.0,2.95861002]
[1625576196616,0.53815088,34325.0,34324.0,2.43523458]
[1625576196716,0.53815088,34325.0,34324.0,1.13668672]
[1625576197619,0.53815088,34325.0,34323.0,1.13387844]
[1625576198269,0.77872632,34325.0,34323.0,1.13387844]
[1625576198671,0.77872632,34325.0,34322.0,1.1347153]
[1625576200127,0.77872632,34325.0,34323.0,1.13526296]
[1625576200226,0.72172632,34325.0,34323.0,1.13526296]
[1625576200326,0.72172632,34325.0,34323.0,1.43107296]
[1625576200327,0.77872632,34325.0,34323.0,1.43107296]
[1625576200426,0.77872632,34325.0,34324.0,1.13466746]
[1625576200526,0.72172632,34325.0,34324.0,1.13466746]
[1625576200879,0.72172632,34325.0,34324.0,2.43057145]
[1625576201778,0.72172632,34325.0,34324.0,1.13466746]
[1625576201929,0.77872632,34325.0,34324.0,1.13466746]
[1625576202030,0.77872632,34325.0,34324.0,2.43256414]
[1625576202230,0.72172632,34325.0,34324.0,2.43256414]
[1625576204435,0.80932632,34325.0,34324.0,2.43256414]
[1625576204686,0.86632632,34325.0,34324.0,2.43256414]
[1625576204988,0.72172632,34325.0,34324.0,2.43256414]
[1625576205692,0.72172632,34325.0,34324.0,2.43610319]
[1625576205895,0.72172632,34325.0,34324.0,3.89486123]
[1625576206645,0.72172632,34325.0,34324.0,2.43610319]
[1625576208650,0.77872632,34325.0,34324.0,2.43610319]
[1625576208849,0.79417151,34325.0,34324.0,2.43610319]
[1625576209257,0.79417151,34325.0,34324.0,1.13820651]
[1625576209352,0.73717151,34325.0,34324.0,1.13820651]
[1625576209950,0.73717151,34325.0,34324.0,2.43686192]
[1625576210501,0.72172632,34325.0,34324.0,2.43686192]
[1625576210902,0.72172632,34325.0,34324.0,3.41046484]
[1625576221729,0.77872632,34325.0,34324.0,3.41046484]
[1625576221835,1.02748632,34325.0,34324.0,3.32306484]
[1625576221944,1.02748632,34325.0,34324.0,0.00353905]
[1625576222024,1.02748632,34325.0,34323.0,0.90246332]
[1625576222123,1.0429642,34325.0,34323.0,0.90246332]
[1625576222327,1.0429642,34325.0,34316.0,1.46218144]
[1625576222447,1.0429642,34325.0,13121.0,0.18]
[1625576222449,1.0429642,34325.0,34324.0,0.11883816]
[1625576222450,0.54633544,34325.0,34324.0,0.11883816]
[1625576222549,0.54633544,34325.0,34318.0,1.3003053]
[1625576222751,0.54633544,34325.0,34255.0,0.31379]
[1625576222752,0.17107466,34323.0,34317.0,0.16285038]
[1625576222829,0.057,34322.0,34317.0,0.16285038]
[1625576222928,0.057,34322.0,34317.0,0.04785038]
[1625576223028,0.057,34322.0,34297.0,1.95420451]
[1625576223029,0.057,34322.0,34308.0,1.30456355]
[1625576223232,0.04994616,34321.0,34308.0,1.30456355]
[1625576223329,0.04994616,34321.0,34294.0,2.19742076]
[1625576223330,0.04994616,34321.0,34306.0,1.30534662]
[1625576223530,0.04994616,34321.0,34309.0,0.00352741]
[1625576223631,0.04994616,34321.0,34306.0,1.30534662]
[1625576223632,4.7865,34310.0,34306.0,0.95577403]
[1625576223731,0.057,34309.0,34306.0,0.95577403]
[1625576223832,0.057,34309.0,34300.0,1.46806855]
[1625576224034,0.07250411,34309.0,34307.0,0.0035241]
[1625576224133,0.01550411,34309.0,34307.0,0.0035241]
[1625576224335,0.01550333,34308.0,34302.0,1.46690189]
[1625576224433,0.72172632,34303.0,34302.0,1.46690189]
[1625576224634,0.72172632,34303.0,34294.0,0.24057544]
[1625576224835,0.72172632,34303.0,34302.0,1.47085931]
[1625576225134,0.72172632,34303.0,34302.0,1.46733556]
[1625576225384,0.72172632,34303.0,34302.0,1.47085937]
[1625576228794,0.72172632,34303.0,34302.0,1.96016228]
[1625576229296,0.77872632,34303.0,34302.0,1.96016228]
[1625576229396,0.72172632,34303.0,34302.0,1.95663847]
[1625576229495,0.72172632,34303.0,34302.0,0.48930291]
[1625576229695,0.72172632,34303.0,34302.0,0.49282526]
[1625576229949,4.62442632,34303.0,34302.0,1.96117941]
[1625576230449,4.94795632,34303.0,34302.0,1.96117941]
[1625576230653,4.94795632,34303.0,34302.0,0.49282526]
[1625576230750,4.94795632,34303.0,34302.0,0.48930291]
[1625576231553,4.89095632,34303.0,34302.0,0.48930291]
[1625576231656,4.62442632,34303.0,34302.0,0.48930291]
[1625576232157,4.68142632,34303.0,34302.0,0.48530291]
[1625576232306,4.62442632,34303.0,34302.0,0.48530291]
[1625576232405,4.62442632,34303.0,34302.0,0.43850291]
[1625576233058,4.62442632,34303.0,34302.0,1.90827684]
[1625576233158,4.62442632,34303.0,34302.0,2.15247684]
[1625576238618,4.62442632,34303.0,34302.0,3.45908864]
[1625576239470,4.62442632,34303.0,34302.0,4.11260449]
[1625576239570,4.62442632,34303.0,34302.0,2.64283056]
[1625576239673,4.62442632,34303.0,34302.0,4.11316246]
[1625576240723,0.72172632,34303.0,34302.0,4.11316246]
[1625576242030,0.72172632,34303.0,34302.0,5.255036]
[1625576245739,0.087,34317.0,34302.0,5.255036]
[1625576245841,0.057,34319.0,34302.0,5.75855581]
[1625576245942,0.057,34319.0,34314.0,0.65158127]
[1625576246040,0.057,34319.0,34314.0,0.98659127]
[1625576246241,0.057,34319.0,34318.0,0.6508345]
[1625576246592,0.057,34319.0,34318.0,1.13198538]
[1625576247045,1.19417544,34320.0,34318.0,1.13198538]
[1625576247395,1.19417544,34320.0,34319.0,0.65070046]
[1625576248998,1.25117544,34320.0,34319.0,0.65070046]
[1625576250153,1.33957544,34320.0,34319.0,0.65070046]
[1625576250355,1.35510133,34320.0,34319.0,0.65070046]
[1625576253265,1.26670133,34320.0,34319.0,0.65070046]
[1625576253621,1.26670133,34320.0,34319.0,0.89459046]
[1625576253622,1.20970133,34320.0,34319.0,0.89459046]
[1625576253836,1.19417544,34320.0,34319.0,0.89459046]
[1625576254031,1.19417544,34320.0,34319.0,3.01002696]
[1625576254367,1.19417544,34320.0,34319.0,1.87094577]
[1625576254570,1.19417544,34320.0,34319.0,3.01008946]
[1625576256489,1.25117544,34320.0,34319.0,3.01008946]
[1625576256722,1.25117544,34320.0,34319.0,1.87094577]
[1625576256822,1.33737544,34320.0,34319.0,1.87094577]
[1625576257230,1.33737544,34320.0,34319.0,0.89459046]
[1625576257539,1.33737544,34320.0,34318.0,1.13293277]
[1625576257623,1.35289983,34320.0,34318.0,1.13293277]
[1625576257873,1.33737544,34320.0,34318.0,1.13293277]
[1625576257973,1.25117544,34320.0,34318.0,1.13293277]
[1625576258074,1.25117544,34320.0,34319.0,0.0862]
[1625576258174,1.33717544,34320.0,34319.0,0.40437]
[1625576258373,1.25117544,34320.0,34319.0,0.40437]
[1625576258475,1.26670002,34320.0,34319.0,0.40437]
[1625576258574,1.26670002,34320.0,34319.0,0.31817]
[1625576258676,1.25117544,34320.0,34319.0,0.96988699]
[1625576258883,1.25117544,34320.0,34319.0,1.94700226]
[1625576258973,1.0106,34320.0,34319.0,1.94700226]
[1625576259101,0.9536,34320.0,34319.0,1.94700226]
[1625576259779,0.9536,34320.0,34319.0,3.08652609]
[1625576263507,0.9536,34320.0,34319.0,4.38823493]
[1625576263890,0.9536,34320.0,34319.0,4.39175018]
[1625576263987,0.9536,34320.0,34319.0,5.85435965]
[1625576264192,0.0001,34320.0,34319.0,5.85435965]
[1625576264438,0.9604,34327.0,34319.0,5.85435965]
[1625576264738,0.9604,34327.0,34326.0,3.24295374]
[1625576264838,0.9604,34327.0,34326.0,3.48167374]
[1625576265441,0.9604,34327.0,34326.0,3.57017374]
[1625576265543,0.9604,34327.0,34326.0,4.86789282]
[1625576265741,0.057,34334.0,34326.0,4.87140712]
[1625576265842,0.24057544,34339.0,34326.0,6.82899506]
[1625576265942,0.2929,34342.0,34327.0,0.00351389]
[1625576266145,0.2929,34342.0,34340.0,0.64691469]
[1625576266243,0.2929,34342.0,34340.0,0.98130469]
[1625576266344,0.2929,34342.0,34341.0,1.61642078]
[1625576266746,0.24057544,34349.0,34341.0,2.57872254]
[1625576266845,0.68419347,34351.0,34341.0,2.57872254]
[1625576266947,0.68406963,34354.0,34346.0,0.64568283]
[1625576267147,1.02601896,34355.0,34345.0,0.96852425]
[1625576267148,0.68401111,34355.0,34348.0,0.64531319]
[1625576267245,0.68401111,34355.0,34348.0,0.87068319]
[1625576267447,0.74093019,34358.0,34351.0,0.64458648]
[1625576267548,0.68393019,34358.0,34351.0,0.64458648]
[1625576267748,0.97547244,34365.0,34353.0,0.6424488]
[1625576267947,0.2929,34365.0,34354.0,0.64253019]
[1625576268448,0.2929,34365.0,34355.0,0.86405388]
[1625576268449,0.057,34364.0,34355.0,0.86405388]
[1625576268648,0.057,34364.0,34355.0,0.22185]
[1625576268747,0.057,34364.0,34363.0,0.48115088]
[1625576268848,0.057,34364.0,34363.0,0.76806088]
[1625576271253,0.057,34364.0,34363.0,0.76496088]
[1625576271356,0.057,34364.0,34363.0,0.47805088]
[1625576271455,0.057,34364.0,34357.0,0.24057544]
[1625576271556,0.29831,34364.0,34346.0,0.64092675]
[1625576271804,0.29831,34364.0,34345.0,0.6411681]
[1625576271805,0.97895531,34364.0,34345.0,0.6411681]
[1625576272306,0.97895531,34364.0,34343.0,0.64151066]
[1625576272307,0.68068682,34362.0,34343.0,0.64151066]
[1625576272404,0.1453,34361.0,34343.0,0.64151066]
[1625576272805,0.24057544,34350.0,34349.0,0.24057544]
[1625576272908,0.60519544,34350.0,34349.0,0.24057544]
[1625576273515,0.89809544,34350.0,34349.0,0.24057544]
[1625576273612,0.81189544,34350.0,34349.0,0.24057544]
[1625576274562,0.81189544,34350.0,34349.0,0.19457544]
[1625576274663,0.89869544,34350.0,34349.0,0.19457544]
[1625576275465,0.51899544,34350.0,34349.0,0.19457544]
[1625576275566,0.29757544,34350.0,34349.0,0.19457544]
[1625576276319,0.24057544,34350.0,34349.0,0.19457544]
[1625576276419,0.29757544,34350.0,34349.0,0.19457544]
[1625576276521,0.24057544,34350.0,34349.0,0.19457544]
[1625576278120,0.24057544,34350.0,34349.0,0.33897544]
[1625576278222,0.24057544,34350.0,34349.0,0.58466544]
[1625576280174,0.29757544,34350.0,34349.0,0.58466544]
[1625576280573,0.29757544,34350.0,34349.0,0.33897544]
[1625576280775,0.38387544,34350.0,34349.0,0.33897544]
[1625576281625,0.29757544,34350.0,34349.0,0.33897544]
[1625576283088,0.24057544,34350.0,34349.0,0.64888544]
[1625576285085,0.29757544,34350.0,34349.0,0.64888544]
[1625576285185,0.29757544,34350.0,34349.0,0.33897544]
[1625576286237,0.29757544,34350.0,34349.0,0.55369544]
[1625576286337,0.24057544,34350.0,34349.0,0.55369544]
[1625576286539,0.29757544,34350.0,34349.0,0.55369544]
[1625576286788,0.24057544,34350.0,34349.0,0.55369544]
[1625576290197,0.24057544,34350.0,34349.0,5.33469544]
[1625576290298,0.48115088,34353.0,34349.0,5.33469544]
[1625576290949,0.48115088,34353.0,34352.0,0.24057544]
[1625576291549,0.057,34363.0,34352.0,0.24057544]
[1625576293100,0.32031,34363.0,34352.0,0.24057544]
[1625576294856,0.01546624,34362.0,34352.0,0.24057544]
[1625576294956,0.48115088,34353.0,34352.0,0.24057544]
[1625576295054,0.81511088,34353.0,34352.0,0.24057544]
[1625576296305,0.75811088,34353.0,34352.0,0.24057544]
[1625576297308,0.81511088,34353.0,34352.0,0.24057544]
[1625576300170,0.75811088,34353.0,34352.0,0.24057544]
[1625576300272,0.81511088,34353.0,34352.0,0.24057544]
[1625576300722,0.83057725,34353.0,34352.0,0.24057544]
[1625576302129,0.81511088,34353.0,34352.0,0.24410064]
[1625576304182,0.83057679,34353.0,34352.0,0.24410064]
[1625576304482,0.83057679,34353.0,34352.0,0.24057544]
[1625576304733,0.83057679,34353.0,34352.0,0.24410065]
[1625576304983,0.83057679,34353.0,34352.0,0.24057544]
[1625576305636,0.83057679,34353.0,34349.0,0.1444]
[1625576305737,0.0877,34352.0,34349.0,0.1444]
[1625576306086,0.01546701,34351.0,34349.0,0.1444]
[1625576307036,0.24057544,34350.0,34349.0,0.1444]
[1625576307237,0.29757544,34350.0,34349.0,0.1444]
[1625576307442,0.31304301,34350.0,34349.0,0.1444]
[1625576307987,0.31304301,34350.0,34349.0,0.0001]
[1625576309038,0.31304301,34350.0,34349.0,0.24067544]
[1625576309039,0.07246757,34350.0,34349.0,0.24067544]
[1625576309342,0.24057544,34362.0,34349.0,0.24067544]
[1625576309442,0.24057544,34362.0,34349.0,2.11080906]
[1625576309541,0.24057544,34362.0,34349.0,2.114334]
[1625576309690,0.24057544,34362.0,34354.0,3.5407]
[1625576309790,0.24057544,34362.0,34354.0,3.8633881]
[1625576309892,0.01546145,34359.0,34354.0,3.8633881]
[1625576310092,0.01546147,34361.0,34355.0,0.00352439]
[1625576310193,0.01546147,34361.0,34355.0,0.32615667]
[1625576310444,0.01546147,34361.0,34356.0,0.32258505]
[1625576310543,0.01546147,34361.0,34356.0,0.64922505]
[1625576310644,0.24057544,34362.0,34356.0,0.6527493]
[1625576310747,0.29757544,34362.0,34356.0,0.6527493]
[1625576310944,0.24057544,34362.0,34357.0,0.00352427]
[1625576311044,0.24057544,34362.0,34361.0,0.48115088]
[1625576311553,0.24057544,34365.0,34361.0,0.48115088]
[1625576311650,1.235,34368.0,34361.0,0.48115088]
[1625576311765,0.9421,34368.0,34361.0,0.48115088]
[1625576311954,0.9421,34368.0,34361.0,0.80350867]
[1625576312047,0.01545955,34367.0,34362.0,0.00352367]
[1625576312199,0.01545955,34367.0,34362.0,0.32577652]
[1625576312297,0.9421,34368.0,34362.0,0.32577652]
[1625576312497,0.9421,34368.0,34363.0,0.32214274]
[1625576312598,0.9421,34368.0,34363.0,0.61402274]
[1625576312799,0.9421,34368.0,34363.0,0.29188]
[1625576313099,0.9421,34368.0,34367.0,0.24057544]
[1625576314205,0.9991,34368.0,34367.0,0.24057544]
[1625576314598,0.9421,34368.0,34367.0,0.24057544]
[1625576316065,0.9991,34368.0,34367.0,0.24057544]
[1625576316806,1.01456504,34368.0,34367.0,0.24057544]
[1625576317855,0.9991,34368.0,34367.0,0.24057544]
[1625576317955,0.9991,34368.0,34361.0,0.24057544]
[1625576318055,1.30617,34368.0,34361.0,0.24057544]
[1625576318155,1.30617,34368.0,34361.0,0.56715515]
[1625576318255,0.0865,34367.0,34361.0,0.56715515]
[1625576318456,0.10196486,34367.0,34361.0,0.24057544]
[1625576318558,0.057,34366.0,34361.0,0.24057544]
[1625576318656,0.0724651,34366.0,34361.0,0.24057544]
[1625576318905,0.057,34366.0,34361.0,0.24057544]
[1625576319158,0.48115088,34362.0,34361.0,0.24057544]
[1625576319408,0.53815088,34362.0,34361.0,0.24057544]
[1625576319509,0.48115088,34362.0,34361.0,0.24057544]
[1625576319609,0.53815088,34362.0,34361.0,0.24057544]
[1625576319861,0.48115088,34362.0,34361.0,0.24057544]
[1625576320611,0.53815088,34362.0,34361.0,0.24057544]
[1625576321215,0.48115088,34362.0,34361.0,0.24057544]
[1625576321514,0.9421,34368.0,34361.0,0.24057544]
[1625576321614,0.9421,34368.0,34362.0,0.32805763]
[1625576321615,1.28368615,34368.0,34362.0,0.32805763]
[1625576321814,1.28368615,34368.0,34361.0,1.24542071]
[1625576321815,0.9421,34368.0,34367.0,0.32750327]
[1625576322768,0.9421,34368.0,34367.0,0.81870618]
[1625576322969,0.9421,34368.0,34367.0,0.32750327]
[1625576323218,0.9421,34368.0,34367.0,0.56807871]
[1625576323421,1.0301,34368.0,34367.0,0.73148366]
[1625576323671,1.0301,34368.0,34367.0,2.37060691]
[1625576324169,1.0871,34368.0,34367.0,2.37060691]
[1625576324269,1.0301,34368.0,34367.0,2.37060691]
[1625576324373,1.0301,34368.0,34367.0,1.38713296]
[1625576324770,1.0871,34368.0,34367.0,1.31033296]
[1625576324871,1.0871,34368.0,34367.0,0.16377544]
[1625576325122,1.0871,34368.0,34367.0,0.12597544]
[1625576325524,1.0871,34368.0,34367.0,0.08247544]
[1625576325676,2.28533334,34368.0,34367.0,0.08247544]
[1625576325927,1.60065302,34368.0,34367.0,0.41029356]
[1625576326224,1.54365302,34368.0,34367.0,0.41029356]
[1625576326425,1.88607779,34368.0,34367.0,0.41029356]
[1625576326725,1.37252477,34368.0,34367.0,0.90133444]
[1625576326977,1.0301,34368.0,34367.0,2.20915805]
[1625576327877,0.9421,34368.0,34367.0,2.20915805]
[1625576328128,0.9991,34368.0,34367.0,2.20915805]
[1625576328228,0.9991,34368.0,34367.0,1.22777301]